{"text_format":"3","workbook":"xlsx","n_sheets":6,"sheets":["Başlangıç","Pano","Giderler ve Gelir","Bütçe Raporu","Veri Listeleri","Kategori PivotTable"],"not_rendered":{"charts":3,"defined_names":23,"pivot_tables":2},"read":"whole","date_system":"1900"}

{"sheet":"Başlangıç","index":0,"n_rows":8,"n_cols":2,"rows_kept":8}
[null,"Şablon Hakkında"]
[null,"Aylık yarı aylık bir ev bütçesi oluşturmak için bu şablonu kullanın."]
[null,"Pano çalışma sayfasında Aylık ve Yıllık Toplamlar için grafikler, iki hafta süreyle Gelir ve Harcamalar tablosu yer alır."]
[null,"Veri Listeleri çalışma sayfasına kategorileri, Gelir ve Harcamalar çalışma sayfasına da değerleri girin."]
[null,"Bütçe Raporu çalışma sayfasında PivotTable'ı yenileyin."]
[null,"Not:"]
[null,"Çalışma sayfasının A sütununda ek yönergeler sağlanmıştır. Bu metin özellikle gizlendi. Metni kaldırmak için A sütununu ve ardından SİL seçeneğini belirleyin. "]
[null,"Tablo hakkında daha fazla bilgi edinmek için bir tabloda SHIFT ve F10 tuşlarına basın, TABLO seçeneğini ve ardından ALTERNATİF METİN seçeneğini belirleyin. PivotTable için tablonun içinde SHIFT ve sonra F10 tuşlarına basın, PIVOTTABLE SEÇENEKLERİ'ni ve ardından ALTERNATİF METİN sekmesini seçin."]

{"sheet":"Pano","index":1,"n_rows":12,"n_cols":15,"rows_kept":12,"merged":[[0,1,0,13],[1,2,1,7]]}
["Bu çalışma sayfasında Aylık ve Yıllık Toplamlar ile iki haftalık gelir ve harcamalar için pano oluşturun. Bu çalışma sayfasının nasıl kullanılacağına yönelik yardımcı yönergeler bu sütundaki hücrelerdedir. Bu çalışma kitabının başlığı sağ hücrede, çalışma sayfası başlığı da O1 hücresindedir.","Yarı Aylık Ev Bütçesi",{"$nulls":12},"PANO"]
["Sağ hücredeki ayı değiştirmek için C2 hücresindeki kaydıracı seçin ve I2 hücresindeki yılı değiştirmek için J2 hücresinde kaydırıcıyı seçin.",{"$f":"CHOOSE(MonthNumber,\"OCAK\",\"ŞUBAT\",\"MART\",\"NİSAN\",\"MAYIS\",\"HAZİRAN\",\"TEMMUZ\",\"AĞUSTOS\",\"EYLÜL\",\"EKİM\",\"KASIM\",\"ARALIK\")","v":"ARALIK"},12,{"$nulls":5},{"$f":"YEAR(TODAY())","v":2022}]
["Ay Toplamları etiketi sağ hücrede ve Yıllık Toplamlar etiketi I3 hücresindedir.","AY TOPLAMLARI",{"$nulls":6},"YILLIK TOPLAM"]
["Aylık Gelir toplamlarını Aylık Harcama toplamlarıyla karşılaştıran çubuk grafik C4 hücresindedir ve Yıllık Gelir toplamlarını Yıllık Harcama toplamlarıyla karşılaştıran çubuk grafik J4 hücresindedir. Sonraki yönerge A8 hücresindedir.","GELİR",null,{"$f":"MonthlyExpendituresTotals","v":{"v":0,"d":"₺0"}},{"$nulls":4},"GELİR",null,null,{"$f":"AnnualExpendituresTotals","v":{"v":10742,"d":"₺10,742"}}]
[null,"HARCAMALAR",null,{"$f":"MonthlyIncomeTotals","v":{"v":0,"d":"₺0"}},{"$nulls":4},"HARCAMALAR",null,null,{"$f":"AnnualIncomeTotals","v":{"v":13200,"d":"₺13,200"}}]
[]
[]
["Sağdaki hücreden başlayan özet tablosu otomatik olarak güncelleştirilir.","Kategori","OCAK","ŞUBAT","MART","NİSAN","MAYIS","HAZİRAN","TEMMUZ","AĞUSTOS","EYLÜL","EKİM","KASIM","ARALIK","Mini grafik"]
[null,"Gelir 1-15",{"$f":"SUMIFS(Gelir[TUTAR],Gelir[TARİH],\"<=\"&DtMiddle,Gelir[TARİH],\">=\"&DtStart)","v":{"v":0,"d":"₺0.00"}},{"$f":"SUMIFS(Gelir[TUTAR],Gelir[TARİH],\"<=\"&DtMiddle,Gelir[TARİH],\">=\"&DtStart)","v":{"v":0,"d":"₺0.00"}},{"$f":"SUMIFS(Gelir[TUTAR],Gelir[TARİH],\"<=\"&DtMiddle,Gelir[TARİH],\">=\"&DtStart)","v":{"v":1300,"d":"₺1,300.00"}},{"$f":"SUMIFS(Gelir[TUTAR],Gelir[TARİH],\"<=\"&DtMiddle,Gelir[TARİH],\">=\"&DtStart)","v":{"v":2600,"d":"₺2,600.00"}},{"$f":"SUMIFS(Gelir[TUTAR],Gelir[TARİH],\"<=\"&DtMiddle,Gelir[TARİH],\">=\"&DtStart)","v":{"v":2600,"d":"₺2,600.00"}},{"$f":"SUMIFS(Gelir[TUTAR],Gelir[TARİH],\"<=\"&DtMiddle,Gelir[TARİH],\">=\"&DtStart)","v":{"v":0,"d":"₺0.00"}},{"$f":"SUMIFS(Gelir[TUTAR],Gelir[TARİH],\"<=\"&DtMiddle,Gelir[TARİH],\">=\"&DtStart)","v":{"v":0,"d":"₺0.00"}},{"$f":"SUMIFS(Gelir[TUTAR],Gelir[TARİH],\"<=\"&DtMiddle,Gelir[TARİH],\">=\"&DtStart)","v":{"v":0,"d":"₺0.00"}},{"$f":"SUMIFS(Gelir[TUTAR],Gelir[TARİH],\"<=\"&DtMiddle,Gelir[TARİH],\">=\"&DtStart)","v":{"v":0,"d":"₺0.00"}},{"$f":"SUMIFS(Gelir[TUTAR],Gelir[TARİH],\"<=\"&DtMiddle,Gelir[TARİH],\">=\"&DtStart)","v":{"v":0,"d":"₺0.00"}},{"$f":"SUMIFS(Gelir[TUTAR],Gelir[TARİH],\"<=\"&DtMiddle,Gelir[TARİH],\">=\"&DtStart)","v":{"v":0,"d":"₺0.00"}},{"$f":"SUMIFS(Gelir[TUTAR],Gelir[TARİH],\"<=\"&DtMiddle,Gelir[TARİH],\">=\"&DtStart)","v":{"v":0,"d":"₺0.00"}}]
[null,"Gelir 16-EOM",{"$f":"SUMIFS(Gelir[TUTAR],Gelir[TARİH],\"<=\"&DtEnd,Gelir[TARİH],\">=\"&DtMiddle+1)","v":{"v":0,"d":"₺0.00"}},{"$f":"SUMIFS(Gelir[TUTAR],Gelir[TARİH],\"<=\"&DtEnd,Gelir[TARİH],\">=\"&DtMiddle+1)","v":{"v":0,"d":"₺0.00"}},{"$f":"SUMIFS(Gelir[TUTAR],Gelir[TARİH],\"<=\"&DtEnd,Gelir[TARİH],\">=\"&DtMiddle+1)","v":{"v":3100,"d":"₺3,100.00"}},{"$f":"SUMIFS(Gelir[TUTAR],Gelir[TARİH],\"<=\"&DtEnd,Gelir[TARİH],\">=\"&DtMiddle+1)","v":{"v":3100,"d":"₺3,100.00"}},{"$f":"SUMIFS(Gelir[TUTAR],Gelir[TARİH],\"<=\"&DtEnd,Gelir[TARİH],\">=\"&DtMiddle+1)","v":{"v":500,"d":"₺500.00"}},{"$f":"SUMIFS(Gelir[TUTAR],Gelir[TARİH],\"<=\"&DtEnd,Gelir[TARİH],\">=\"&DtMiddle+1)","v":{"v":0,"d":"₺0.00"}},{"$f":"SUMIFS(Gelir[TUTAR],Gelir[TARİH],\"<=\"&DtEnd,Gelir[TARİH],\">=\"&DtMiddle+1)","v":{"v":0,"d":"₺0.00"}},{"$f":"SUMIFS(Gelir[TUTAR],Gelir[TARİH],\"<=\"&DtEnd,Gelir[TARİH],\">=\"&DtMiddle+1)","v":{"v":0,"d":"₺0.00"}},{"$f":"SUMIFS(Gelir[TUTAR],Gelir[TARİH],\"<=\"&DtEnd,Gelir[TARİH],\">=\"&DtMiddle+1)","v":{"v":0,"d":"₺0.00"}},{"$f":"SUMIFS(Gelir[TUTAR],Gelir[TARİH],\"<=\"&DtEnd,Gelir[TARİH],\">=\"&DtMiddle+1)","v":{"v":0,"d":"₺0.00"}},{"$f":"SUMIFS(Gelir[TUTAR],Gelir[TARİH],\"<=\"&DtEnd,Gelir[TARİH],\">=\"&DtMiddle+1)","v":{"v":0,"d":"₺0.00"}},{"$f":"SUMIFS(Gelir[TUTAR],Gelir[TARİH],\"<=\"&DtEnd,Gelir[TARİH],\">=\"&DtMiddle+1)","v":{"v":0,"d":"₺0.00"}}]
[null,"Harcamalar 1-15",{"$f":"SUMIFS(Harcamalar[TUTAR],Harcamalar[TARİH],\"<=\"&DtMiddle+1,Harcamalar[TARİH],\">=\"&DtStart)","v":{"v":0,"d":"₺0.00"}},{"$f":"SUMIFS(Harcamalar[TUTAR],Harcamalar[TARİH],\"<=\"&DtMiddle+1,Harcamalar[TARİH],\">=\"&DtStart)","v":{"v":0,"d":"₺0.00"}},{"$f":"SUMIFS(Harcamalar[TUTAR],Harcamalar[TARİH],\"<=\"&DtMiddle+1,Harcamalar[TARİH],\">=\"&DtStart)","v":{"v":1150,"d":"₺1,150.00"}},{"$f":"SUMIFS(Harcamalar[TUTAR],Harcamalar[TARİH],\"<=\"&DtMiddle+1,Harcamalar[TARİH],\">=\"&DtStart)","v":{"v":5225,"d":"₺5,225.00"}},{"$f":"SUMIFS(Harcamalar[TUTAR],Harcamalar[TARİH],\"<=\"&DtMiddle+1,Harcamalar[TARİH],\">=\"&DtStart)","v":{"v":3242,"d":"₺3,242.00"}},{"$f":"SUMIFS(Harcamalar[TUTAR],Harcamalar[TARİH],\"<=\"&DtMiddle+1,Harcamalar[TARİH],\">=\"&DtStart)","v":{"v":0,"d":"₺0.00"}},{"$f":"SUMIFS(Harcamalar[TUTAR],Harcamalar[TARİH],\"<=\"&DtMiddle+1,Harcamalar[TARİH],\">=\"&DtStart)","v":{"v":0,"d":"₺0.00"}},{"$f":"SUMIFS(Harcamalar[TUTAR],Harcamalar[TARİH],\"<=\"&DtMiddle+1,Harcamalar[TARİH],\">=\"&DtStart)","v":{"v":0,"d":"₺0.00"}},{"$f":"SUMIFS(Harcamalar[TUTAR],Harcamalar[TARİH],\"<=\"&DtMiddle+1,Harcamalar[TARİH],\">=\"&DtStart)","v":{"v":0,"d":"₺0.00"}},{"$f":"SUMIFS(Harcamalar[TUTAR],Harcamalar[TARİH],\"<=\"&DtMiddle+1,Harcamalar[TARİH],\">=\"&DtStart)","v":{"v":0,"d":"₺0.00"}},{"$f":"SUMIFS(Harcamalar[TUTAR],Harcamalar[TARİH],\"<=\"&DtMiddle+1,Harcamalar[TARİH],\">=\"&DtStart)","v":{"v":0,"d":"₺0.00"}},{"$f":"SUMIFS(Harcamalar[TUTAR],Harcamalar[TARİH],\"<=\"&DtMiddle+1,Harcamalar[TARİH],\">=\"&DtStart)","v":{"v":0,"d":"₺0.00"}}]
[null,"Harcamalar 16-EOM",{"$f":"SUMIFS(Harcamalar[TUTAR],Harcamalar[TARİH],\"<=\"&DtEnd,Harcamalar[TARİH],\">=\"&DtMiddle+1)","v":{"v":0,"d":"₺0.00"}},{"$f":"SUMIFS(Harcamalar[TUTAR],Harcamalar[TARİH],\"<=\"&DtEnd,Harcamalar[TARİH],\">=\"&DtMiddle+1)","v":{"v":75,"d":"₺75.00"}},{"$f":"SUMIFS(Harcamalar[TUTAR],Harcamalar[TARİH],\"<=\"&DtEnd,Harcamalar[TARİH],\">=\"&DtMiddle+1)","v":{"v":200,"d":"₺200.00"}},{"$f":"SUMIFS(Harcamalar[TUTAR],Harcamalar[TARİH],\"<=\"&DtEnd,Harcamalar[TARİH],\">=\"&DtMiddle+1)","v":{"v":900,"d":"₺900.00"}},{"$f":"SUMIFS(Harcamalar[TUTAR],Harcamalar[TARİH],\"<=\"&DtEnd,Harcamalar[TARİH],\">=\"&DtMiddle+1)","v":{"v":500,"d":"₺500.00"}},{"$f":"SUMIFS(Harcamalar[TUTAR],Harcamalar[TARİH],\"<=\"&DtEnd,Harcamalar[TARİH],\">=\"&DtMiddle+1)","v":{"v":0,"d":"₺0.00"}},{"$f":"SUMIFS(Harcamalar[TUTAR],Harcamalar[TARİH],\"<=\"&DtEnd,Harcamalar[TARİH],\">=\"&DtMiddle+1)","v":{"v":0,"d":"₺0.00"}},{"$f":"SUMIFS(Harcamalar[TUTAR],Harcamalar[TARİH],\"<=\"&DtEnd,Harcamalar[TARİH],\">=\"&DtMiddle+1)","v":{"v":0,"d":"₺0.00"}},{"$f":"SUMIFS(Harcamalar[TUTAR],Harcamalar[TARİH],\"<=\"&DtEnd,Harcamalar[TARİH],\">=\"&DtMiddle+1)","v":{"v":0,"d":"₺0.00"}},{"$f":"SUMIFS(Harcamalar[TUTAR],Harcamalar[TARİH],\"<=\"&DtEnd,Harcamalar[TARİH],\">=\"&DtMiddle+1)","v":{"v":0,"d":"₺0.00"}},{"$f":"SUMIFS(Harcamalar[TUTAR],Harcamalar[TARİH],\"<=\"&DtEnd,Harcamalar[TARİH],\">=\"&DtMiddle+1)","v":{"v":0,"d":"₺0.00"}},{"$f":"SUMIFS(Harcamalar[TUTAR],Harcamalar[TARİH],\"<=\"&DtEnd,Harcamalar[TARİH],\">=\"&DtMiddle+1)","v":{"v":0,"d":"₺0.00"}}]

{"sheet":"Giderler ve Gelir","index":2,"n_rows":36,"n_cols":9,"rows_kept":36,"merged":[[0,1,0,6],[0,7,0,8]]}
["Bu çalışma sayfasında Gelir ve Harcamalar listesini oluşturun. Bu çalışma sayfasının nasıl kullanılacağına yönelik yardımcı yönergeler bu sütundaki hücrelerdedir. Çalışma kitabının başlığı sağ hücrede, çalışma sayfası başlığı da H1 hücresindedir.",{"$f":"Semi_Monthly_Home_Budget_Title","v":"Yarı Aylık Ev Bütçesi"},{"$nulls":5},"GELİR VE HARCAMALAR"]
["Gelir etiketi sağ hücrede, Harcamalar etiketi de F2 hücresindedir.","GELİR",{"$nulls":3},"HARCAMALAR"]
["Sağ hücreden başlayarak Gelir tablosuna ve Harcamalar tablosuna F3 hücresinde başlayan ayrıntıları girin.","TARİH","AÇIKLAMA","TUTAR",null,"TARİH","KATEGORİ","AÇIKLAMA","TUTAR"]
[null,{"$f":"TODAY()","v":"2022-05-16"},"Bonus",{"v":500,"d":"₺500.00"},null,{"$f":"TODAY()","v":"2022-05-16"},"Medikal","Sigorta",{"v":500,"d":"₺500.00"}]
[null,{"$f":"TODAY()-14","v":"2022-05-02"},"Cem’in maaş çeki",{"v":1300,"d":"₺1,300.00"},null,{"$f":"TODAY()-7","v":"2022-05-09"},"Ev Ait","Ev kredisi",{"v":1000,"d":"₺1,000.00"}]
[null,{"$f":"TODAY()-14","v":"2022-05-02"},"Elif’in maaş çeki",{"v":1300,"d":"₺1,300.00"},null,"2022-05-09","Ev Ait","Elektrik",{"v":100,"d":"₺100.00"}]
[null,{"$f":"TODAY()-28","v":"2022-04-18"},"Cem’in maaş çeki",{"v":1500,"d":"₺1,500.00"},null,"2022-05-09","Ev Ait","Su / kanalizasyon",{"v":50,"d":"₺50.00"}]
[null,{"$f":"TODAY()-28","v":"2022-04-18"},"Elif’in maaş çeki",{"v":1600,"d":"₺1,600.00"},null,"2022-05-09","Ev Ait","Çöp",{"v":25,"d":"₺25.00"}]
[null,{"$f":"TODAY()-42","v":"2022-04-04"},"Cem’in maaş çeki",{"v":1300,"d":"₺1,300.00"},null,"2022-05-09","Ev Ait","Cep telefonu",{"v":100,"d":"₺100.00"}]
[null,{"$f":"TODAY()-42","v":"2022-04-04"},"Elif’in maaş çeki",{"v":1300,"d":"₺1,300.00"},null,"2022-05-09","Ev Ait","Cep telefonu",{"v":30,"d":"₺30.00"}]
[null,{"$f":"TODAY()-56","v":"2022-03-21"},"Cem’in maaş çeki",{"v":1500,"d":"₺1,500.00"},null,"2022-05-09","Ev Ait","Ev kredisi",{"v":50,"d":"₺50.00"}]
[null,{"$f":"TODAY()-56","v":"2022-03-21"},"Elif’in maaş çeki",{"v":1600,"d":"₺1,600.00"},null,"2022-05-09","Ev Ait","Cep telefonu",{"v":50,"d":"₺50.00"}]
[null,{"$f":"TODAY()-70","v":"2022-03-07"},"Cem’in maaş çeki",{"v":1300,"d":"₺1,300.00"},null,{"$f":"TODAY()-7","v":"2022-05-09"},"Ev Ait","Cep telefonu",{"v":25,"d":"₺25.00"}]
[{"$nulls":5},{"$f":"TODAY()-8","v":"2022-05-08"},"Ev Ait","Elektrik",{"v":100,"d":"₺100.00"}]
[{"$nulls":5},{"$f":"TODAY()-9","v":"2022-05-07"},"Eğlence","Filmler",{"v":37,"d":"₺37.00"}]
[{"$nulls":5},{"$f":"TODAY()-10","v":"2022-05-06"},"Yiyecek","Market alışverişi",{"v":350,"d":"₺350.00"}]
[{"$nulls":5},{"$f":"TODAY()-11","v":"2022-05-05"},"Yiyecek","Dışarıda yemek",{"v":75,"d":"₺75.00"}]
[{"$nulls":5},{"$f":"TODAY()-12","v":"2022-05-04"},"Çocuklar","Öğle yemeği harçlığı",{"v":150,"d":"₺150.00"}]
[{"$nulls":5},{"$f":"TODAY()-13","v":"2022-05-03"},"Yatırım Hesapları","Birikim",{"v":250,"d":"₺250.00"}]
[{"$nulls":5},{"$f":"TODAY()-14","v":"2022-05-02"},"Yatırım Hesapları","Yatırım hesabı",{"v":250,"d":"₺250.00"}]
[{"$nulls":5},{"$f":"TODAY()-15","v":"2022-05-01"},"Kişisel","Sağlık / Fitness",{"v":100,"d":"₺100.00"}]
[{"$nulls":5},{"$f":"TODAY()-16","v":"2022-04-30"},"Evcil Hayvanlar","Yiyecek",{"v":50,"d":"₺50.00"}]
[{"$nulls":5},{"$f":"TODAY()-20","v":"2022-04-26"},"Evcil Hayvanlar","Bakım",{"v":50,"d":"₺50.00"}]
[{"$nulls":5},{"$f":"TODAY()-20","v":"2022-04-26"},"Evcil Hayvanlar","Diğer",{"v":50,"d":"₺50.00"}]
[{"$nulls":5},{"$f":"TODAY()-25","v":"2022-04-21"},"Ulaşım","1. Araba Ödemesi ",{"v":300,"d":"₺300.00"}]
[{"$nulls":5},{"$f":"TODAY()-25","v":"2022-04-21"},"Ulaşım","2. Araba Ödemesi ",{"v":350,"d":"₺350.00"}]
[{"$nulls":5},{"$f":"TODAY()-25","v":"2022-04-21"},"Ulaşım","Araç Sigortası",{"v":50,"d":"₺50.00"}]
[{"$nulls":5},{"$f":"TODAY()-30","v":"2022-04-16"},"Ulaşım","Yakıt",{"v":50,"d":"₺50.00"}]
[{"$nulls":5},{"$f":"TODAY()-31","v":"2022-04-15"},"Ulaşım","Yakıt",{"v":25,"d":"₺25.00"}]
[{"$nulls":5},{"$f":"TODAY()-42","v":"2022-04-04"},"Ulaşım","2. Araba Ödemesi ",{"v":150,"d":"₺150.00"}]
[{"$nulls":5},{"$f":"TODAY()-45","v":"2022-04-01"},"Ev Ait","Ev kredisi",{"v":5000,"d":"₺5,000.00"}]
[{"$nulls":5},{"$f":"TODAY()-50","v":"2022-03-27"},"Ev Ait","Elektrik",{"v":200,"d":"₺200.00"}]
[{"$nulls":5},{"$f":"TODAY()-65","v":"2022-03-12"},"Ev Ait","Cep telefonu",{"v":100,"d":"₺100.00"}]
[{"$nulls":5},{"$f":"TODAY()-70","v":"2022-03-07"},"Ev Ait","Çöp",{"v":50,"d":"₺50.00"}]
[{"$nulls":5},{"$f":"TODAY()-75","v":"2022-03-02"},"Ev Ait","Ev kredisi",{"v":1000,"d":"₺1,000.00"}]
[{"$nulls":5},{"$f":"TODAY()-78","v":"2022-02-27"},"Eğlence","Filmler",{"v":75,"d":"₺75.00"}]

{"sheet":"Bütçe Raporu","index":3,"n_rows":26,"n_cols":6,"rows_kept":26,"merged":[[0,1,0,4],[1,1,1,3],[4,3,4,5]]}
["Bu çalışma sayfasında bir Bütçe Raporu oluşturun. Bu çalışma sayfasının nasıl kullanılacağına yönelik yardımcı yönergeler bu sütundaki hücrelerdedir. Çalışma kitabının başlığı sağ hücrede, çalışma sayfası başlığı da F1 hücresindedir.",{"$f":"Semi_Monthly_Home_Budget_Title","v":"Yarı Aylık Ev Bütçesi"},{"$nulls":3},"BÜTÇE RAPORU"]
["Yıl, Çeyrek, Ay veya Gün seçin ve seçilen dönem için Harcama PivotTable'ını almak için sağ hücrede kaydırıcıyı kullanın. PivotTable verilerini filtrelemek için kategori dilimleyicisi E2 hücresinde ve Açıklama dilimleyicisi F2 hücresindedir.","Filtre uygulamanın zaman çizelgesi bu hücrededir.",null,null,"PivotTable verilerini Kategoriye göre filtreleme dilimleyicisi bu hücrededir.","PivotTable verilerini Açıklama'ya göre filtrelemek için dilimleyici bu hücrededir."]
["İpucu sağdaki hücrededir.","Harcamalar PivotTable'ında Shift+F10 tuşlarına basın ve ardından bu sayfada verileri güncelleştirmek için Yenile'yi Çözümle sekmesi altında Yenile'yi seçin."]
["Harcama etiketi sağ hücrededir.","HARCAMALAR"]
["Harcamaların gösteren PivotTable sağdaki hücrede başlar. Kategori Toplamları etiketi D4 hücresindedir.","Satır Etiketleri","Toplam TUTAR","KATEGORI TOPLAMLARI"]
["Her kategori toplamı karşılaştıran pasta grafik D6 hücresindedir.","1. Araba Ödemesi ",{"v":300,"d":"₺300.00"}]
[null,"2. Araba Ödemesi ",{"v":500,"d":"₺500.00"}]
[null,"Araç Sigortası",{"v":50,"d":"₺50.00"}]
[null,"Bakım",{"v":50,"d":"₺50.00"}]
[null,"Birikim",{"v":250,"d":"₺250.00"}]
[null,"Cep telefonu",{"v":305,"d":"₺305.00"}]
[null,"Çöp",{"v":75,"d":"₺75.00"}]
[null,"Dışarıda yemek",{"v":75,"d":"₺75.00"}]
[null,"Diğer",{"v":50,"d":"₺50.00"}]
[null,"Elektrik",{"v":400,"d":"₺400.00"}]
[null,"Ev kredisi",{"v":7050,"d":"₺7,050.00"}]
[null,"Filmler",{"v":112,"d":"₺112.00"}]
[null,"Market alışverişi",{"v":350,"d":"₺350.00"}]
[null,"Öğle yemeği harçlığı",{"v":150,"d":"₺150.00"}]
[null,"Sağlık / Fitness",{"v":100,"d":"₺100.00"}]
[null,"Sigorta",{"v":500,"d":"₺500.00"}]
[null,"Su / kanalizasyon",{"v":50,"d":"₺50.00"}]
[null,"Yakıt",{"v":75,"d":"₺75.00"}]
[null,"Yatırım hesabı",{"v":250,"d":"₺250.00"}]
[null,"Yiyecek",{"v":50,"d":"₺50.00"}]
[null,"Genel Toplam",{"v":10742,"d":"₺10,742.00"}]

{"sheet":"Veri Listeleri","index":4,"n_rows":8,"n_cols":13,"rows_kept":8,"merged":[[0,1,0,11]]}
["Harcamalar ve Gelir çalışma sayfasındaki Harcamalar tablosunda açılan listeleri doldurmak için bu çalışma sayfasına Kategori verilerini girin. Listeleri güncelleştirmek için her kategorinin altındaki kategori adlarını veya açıklamalarını değiştirebilirsiniz. Bu çalışma sayfasının nasıl kullanılacağına yönelik yardımcı yönergeler bu sütundaki hücrelerdedir. Çalışma kitabının başlığı sağ hücrede, çalışma sayfası başlığı da M1 hücresindedir.",{"$f":"Semi_Monthly_Home_Budget_Title","v":"Yarı Aylık Ev Bütçesi"},{"$nulls":10},"VERİ LİSTELERİ"]
["İpucu sağdaki hücrededir.","KURULUM         Aşağıdaki Kategori verileri Harcamalar ve Gelirler sayfası Harcamalar tablosunda açılan listeleri doldurur. Listeleri güncellemek için kategori adlarını veya her kategorinin altındaki açıklamaları değiştirin."]
["Tablodaki her kategorinin altında, sağ hücreden başlayarak kategori adlarını veya açıklamalarını girin veya değiştirin.","Ev Ait","Eğlence","Yiyecek","Hediyeler / Bağışlar","Çocuklar","Yatırım Hesapları","Medikal","Diğer","Kişisel","Evcil Hayvanlar","Vergiler / Yasal","Ulaşım"]
[null,"Ev kredisi","Filmler","Market alışverişi","Hayır kurumu 1","Kıyafet","IRA","Doktor / Klinik","Diğer","Giyim","Yiyecek","Federal","1. Araba Ödemesi "]
[null,"Elektrik","Video / Filmler","Dışarıda yemek","Hayır kurumu 2","Oyuncaklar / Oyun","Birikim","Sigorta","Kuruluş Ücretleri","Kuaför / Tırnak","Diğer Malzemeler","Devlet","2. Araba Ödemesi "]
[null,"Su / Kanalizasyon","Müzik",null,"Hayır kurumu 3","Öğle yemeği harçlığı","Çek",null,null,"Kuru temizleme","Medikal","Belediye","Araç Sigortası"]
[null,"Çöp","Konserler / Tiyatro",null,"Hediye","Ödemeler / Ücretler","Emeklilik",null,null,"Sağlık / Fitness","Bakım","Diğer","Lisans / Kayıt"]
[null,"Cep telefonu","Spor etkinlikleri",null,null,"Okul malzemeleri","Yatırım hesabı",null,null,"Alışveriş","Diğer","Avukat","Yakıt"]

{"sheet":"Kategori PivotTable","index":5,"n_rows":13,"n_cols":13,"rows_kept":13,"hidden":true}
[null,"Yarı Aylık Ev Bütçesi",{"$nulls":10},"KATEGORİ ÖZETİ"]
[null,"Bu PivotTable, Bütçe Raporu'ndaki Kategori Toplamları PivotChart'ın veri kaynağıdır. "]
[null,"Satır Etiketleri","Toplam TUTAR"]
[null,"Çocuklar",{"v":150,"d":"₺150"}]
[null,"Eğlence",{"v":112,"d":"₺112"}]
[null,"Ev Ait",{"v":7880,"d":"₺7,880"}]
[null,"Evcil Hayvanlar",{"v":150,"d":"₺150"}]
[null,"Kişisel",{"v":100,"d":"₺100"}]
[null,"Medikal",{"v":500,"d":"₺500"}]
[null,"Ulaşım",{"v":925,"d":"₺925"}]
[null,"Yatırım Hesapları",{"v":500,"d":"₺500"}]
[null,"Yiyecek",{"v":425,"d":"₺425"}]
[null,"Genel Toplam",{"v":10742,"d":"₺10,742"}]